bitfinex/quotes_ETHUSD_20260202
["timestamp","ask_amount","ask_price","bid_price","bid_amount"]
[1770006373004,0.925,2270.7,2267.9,13.40172597]
[1770006373211,0.925,2270.7,2268.0,13.50412597]
[1770006373456,0.925,2270.7,2267.7,1.1585703]
[1770006373457,15.28787556,2271.6,2268.6,13.40172597]
[1770006373629,15.28787556,2271.6,2268.8,13.40172597]
[1770006373830,16.04057763,2271.5,2268.9,1.4326726]
[1770006374029,14.61419007,2271.4,2267.9,14.32672597]
[1770006374230,0.925,2271.3,2267.9,14.32672597]
[1770006374465,13.68919007,2271.1,2267.9,14.32672597]
[1770006374682,0.1024,2270.7,2268.0,0.4813493]
[1770006374871,0.1024,2270.7,2267.9,14.32672597]
[1770006375026,1.36891901,2270.7,2268.0,15.31574787]
[1770006375227,0.925,2270.6,2268.0,14.83439857]
[1770006375427,0.1024,2271.1,2268.1,0.2335703]
[1770006375644,0.925,2271.0,2268.1,13.63529627]
[1770006375846,0.1024,2271.4,2268.3,13.63529627]
[1770006376037,0.925,2271.3,2268.5,13.40172597]
[1770006376223,10.39563035,2271.3,2268.5,13.40172597]
[1770006376648,9.47063035,2271.3,2268.8,0.001]
[1770006376845,14.61419007,2271.2,2268.8,0.001]
[1770006377056,13.68919007,2271.2,2268.8,0.001]
[1770006377258,15.88070908,2271.1,2268.8,0.001]
[1770006377473,13.68919007,2271.0,2268.8,0.001]
[1770006377956,0.1024,2270.8,2268.8,0.001]
[1770006378260,0.925,2270.7,2268.8,0.001]
[1770006378469,1.36891901,2271.1,2268.8,0.001]
[1770006378686,0.925,2271.0,2268.8,0.001]
[1770006379342,13.68919007,2270.9,2268.8,0.001]
[1770006379542,13.68919007,2270.5,2267.6,13.40172597]
[1770006379758,13.68919007,2270.3,2267.0,0.925]
[1770006380048,13.68919007,2269.9,2267.1,0.4813493]
[1770006380363,0.1024,2269.7,2267.1,0.4813493]
[1770006380537,13.68919007,2269.7,2267.0,0.925]
[1770006380737,0.925,2269.6,2267.0,14.32672597]
[1770006380952,0.925,2269.6,2266.5,2.26401573]
[1770006380953,13.82036037,2269.4,2266.5,2.26401573]
[1770006381154,13.68919007,2268.9,2266.4,13.40172597]
[1770006381362,13.58679007,2268.4,2265.8,13.40172597]
[1770006381546,13.58679007,2268.4,2265.5,0.4813493]
[1770006381547,13.58679007,2268.0,2265.5,0.4813493]
[1770006381874,0.925,2268.3,2265.2,13.40172597]
[1770006381875,13.68919007,2267.9,2265.2,13.40172597]
[1770006382094,13.82036037,2267.3,2263.9,23.14974051]
[1770006382372,1.10237249,2267.9,2264.0,15.71670002]
[1770006382373,0.1024,2266.9,2264.0,15.71670002]
[1770006382777,0.925,2266.8,2264.1,13.40172597]
[1770006383274,13.58679007,2267.7,2264.5,13.40172597]
[1770006383446,0.925,2267.6,2264.7,13.40172597]
[1770006383648,13.58679007,2267.7,2264.8,15.63568503]
[1770006383649,1.45117901,2267.5,2264.8,15.63568503]
[1770006383878,0.1024,2267.3,2264.8,15.63568503]
[1770006384347,1.45117901,2267.5,2264.9,13.40172597]
[1770006384881,13.58679007,2269.4,2265.4,13.40172597]
[1770006385183,13.58679007,2268.9,2265.6,13.40172597]
[1770006385586,13.58679007,2268.9,2266.0,13.40172597]
[1770006386082,0.925,2268.8,2266.0,13.40172597]
[1770006386388,0.1024,2268.7,2266.0,13.40172597]
[1770006386543,1.56381901,2268.7,2266.1,1.3401726]
[1770006386741,1.46141901,2268.7,2266.1,14.74189857]
[1770006387189,0.925,2268.6,2266.3,13.40172597]
[1770006387354,13.58679007,2269.6,2266.5,13.40172597]
[1770006387695,0.1024,2269.2,2266.6,0.49367005]
[1770006387848,1.48155901,2269.2,2266.7,0.97480145]
[1770006388175,0.925,2269.1,2266.7,14.37652742]
[1770006388762,13.68919007,2269.0,2266.7,0.97480145]
[1770006389080,1.37915901,2269.2,2266.6,13.40172597]
[1770006389283,0.925,2269.1,2266.7,14.5]
[1770006389454,0.925,2269.1,2266.7,27.90172597]
[1770006389849,0.925,2269.1,2266.7,13.40172597]
[1770006390297,13.68919007,2269.0,2266.4,0.925]
[1770006390454,0.2335703,2268.7,2266.7,0.001]
[1770006390654,0.2335703,2268.3,2266.7,0.001]
[1770006390882,0.2335703,2267.8,2265.4,13.40172597]
[1770006391087,13.68919007,2267.9,2265.5,1.3401726]
[1770006391282,13.68919007,2267.9,2265.6,0.56186702]
[1770006391499,13.68919007,2267.9,2265.5,1.3401726]
[1770006391669,0.925,2267.8,2265.5,1.3401726]
[1770006391869,1.46141901,2267.7,2265.6,1.47418986]
[1770006392167,0.925,2267.6,2265.4,13.40172597]
[1770006392371,1.46141901,2267.7,2265.6,0.52586035]
[1770006392558,1.46141901,2267.7,2265.4,13.40172597]
[1770006392559,0.925,2267.6,2265.4,13.40172597]
[1770006392759,0.926,2267.5,2265.5,0.52586035]
[1770006393104,1.46141901,2267.7,2265.5,13.92758632]
[1770006393305,0.926,2267.8,2265.7,13.40172597]
[1770006393595,0.1024,2268.5,2265.8,14.32772597]
[1770006393796,0.926,2268.4,2265.8,14.32772597]
[1770006394090,0.1024,2268.2,2265.8,14.32772597]
[1770006394390,0.1024,2268.2,2265.6,1.39275863]
[1770006394391,0.1024,2267.9,2265.6,1.39275863]
[1770006394576,13.68919007,2267.9,2265.2,14.32772597]
[1770006394758,0.1024,2267.8,2265.3,13.92758632]
[1770006394961,0.926,2267.7,2265.5,13.40172597]
[1770006395204,0.926,2267.6,2265.5,13.40172597]
[1770006395491,0.926,2267.5,2265.5,1.3401726]
[1770006395802,0.926,2267.5,2264.9,13.40172597]
[1770006395803,34.53219007,2267.4,2264.9,13.40172597]
[1770006396010,13.68919007,2267.4,2264.9,13.40172597]
[1770006396297,1.0284,2267.3,2264.9,13.40172597]
[1770006396475,0.926,2267.2,2264.9,13.40172597]
[1770006396860,13.68919007,2267.1,2263.9,13.50412597]
[1770006397066,13.68919007,2266.9,2264.0,14.75213857]
[1770006397290,13.68919007,2266.7,2264.0,14.75213857]
[1770006397496,0.1024,2266.5,2264.0,14.75213857]
[1770006397698,12.84220405,2266.2,2263.4,13.45218915]
[1770006398010,0.926,2266.1,2263.4,13.45218915]
[1770006398165,0.1024,2266.0,2263.4,13.45218915]
[1770006398364,12.71103375,2266.0,2263.4,13.45218915]
[1770006398563,12.60863375,2266.0,2263.4,13.45218915]
[1770006398767,0.2335703,2266.6,2263.7,13.45318915]
[1770006398768,2.18686338,2265.9,2263.7,13.45318915]
[1770006398997,0.926,2265.9,2263.7,13.45318915]
[1770006399298,1.46151901,2267.0,2263.9,13.45218915]
[1770006399594,0.926,2266.4,2264.0,14.5]
[1770006399962,0.1024,2266.7,2264.0,15.426]
[1770006400164,0.926,2266.6,2264.1,13.45218915]
[1770006400496,1.46151901,2267.0,2264.4,13.45218915]
[1770006400672,0.926,2267.0,2264.4,13.45218915]
[1770006400877,0.926,2267.0,2264.6,13.45218915]
[1770006401078,0.926,2266.9,2264.6,13.45218915]
[1770006401604,0.926,2266.8,2264.6,13.45218915]
[1770006401768,0.926,2266.8,2264.2,2.88781892]
[1770006401769,12.60863375,2267.4,2264.8,13.45218915]
[1770006401976,3.39189741,2267.3,2264.9,15.11330334]
[1770006402223,14.89789713,2267.3,2264.9,15.11330334]
[1770006402374,1.20508172,2267.2,2264.9,1.66111419]
[1770006402574,0.1024,2267.0,2264.8,0.926]
[1770006403182,0.1024,2266.8,2264.3,13.45218915]
[1770006403385,0.1024,2266.8,2264.3,14.37818915]
[1770006403619,0.926,2266.7,2264.3,14.37818915]
[1770006403846,2.36352133,2267.3,2264.3,14.37818915]
[1770006403847,0.1024,2267.0,2264.3,14.37818915]
[1770006404006,0.926,2266.9,2264.5,13.45218915]
[1770006404212,12.94460405,2266.8,2264.4,1.43781892]
[1770006404514,12.60863375,2266.8,2264.0,13.45218915]
[1770006404735,0.1024,2267.1,2264.5,0.001]
[1770006405028,0.1024,2267.1,2264.5,13.45318915]
[1770006405029,0.926,2267.0,2264.5,13.45318915]
[1770006405645,0.1024,2266.9,2264.5,13.45318915]
[1770006405809,12.71103375,2266.9,2264.5,13.45318915]
[1770006406008,12.71103375,2266.7,2264.5,0.001]
[1770006406737,0.1024,2266.5,2264.5,0.001]
[1770006406938,13.70286061,2266.5,2264.5,0.001]
[1770006407266,0.926,2266.4,2264.5,0.001]
[1770006407412,13.70286061,2266.5,2264.5,0.001]
[1770006407413,0.926,2266.3,2264.5,0.001]
[1770006407614,0.926,2266.2,2264.5,0.001]
[1770006408639,0.1024,2266.1,2264.5,0.001]
[1770006408938,19.929,2266.0,2264.5,0.001]
[1770006409237,0.1024,2265.9,2264.5,0.001]
[1770006409409,0.23651563,2266.1,2264.5,0.001]
[1770006409609,0.926,2266.0,2264.5,0.001]
[1770006409912,13.60046061,2265.4,2262.0,13.79604189]
[1770006410160,0.1024,2265.0,2262.2,13.79604189]
[1770006410437,0.1024,2264.8,2262.3,15.17564608]
[1770006410734,1.37028606,2265.0,2262.3,15.17564608]
[1770006410938,0.926,2264.7,2262.3,15.17564608]
[1770006411455,1.37028606,2265.0,2262.3,15.17564608]
[1770006411456,0.926,2264.6,2262.3,15.17564608]
[1770006412062,13.60046061,2264.8,2262.3,15.17564608]
[1770006412281,0.926,2264.5,2262.4,1.51756461]
[1770006413115,0.926,2264.5,2262.4,15.3136065]
[1770006413645,0.1024,2264.4,2262.4,15.3136065]
[1770006414048,1.10409398,2264.3,2262.4,15.3136065]
[1770006414248,1.1040304,2264.5,2262.4,15.3136065]
[1770006414554,0.927,2264.2,2262.5,1.53136065]
[1770006414747,0.927,2264.2,2261.8,14.72204189]
[1770006414748,0.1024,2264.1,2261.8,14.72204189]
[1770006416058,0.1024,2263.9,2261.8,14.72204189]
[1770006416257,0.927,2263.8,2261.8,14.72204189]
[1770006417051,0.1024,2263.7,2261.8,14.72204189]
[1770006417449,0.927,2263.8,2261.8,14.72204189]
[1770006417653,0.927,2263.8,2261.9,1.47220419]
[1770006418051,0.927,2263.8,2261.2,13.79604189]
[1770006418052,21.98038672,2263.7,2261.2,13.79604189]
[1770006418362,0.1024,2264.0,2261.4,13.79604189]
[1770006418562,0.927,2263.9,2261.4,13.79604189]
[1770006418769,0.927,2263.9,2262.0,0.001]
[1770006419473,0.927,2263.8,2262.0,0.001]
[1770006419655,0.927,2263.8,2262.0,1.38080419]
[1770006420281,0.1035,2264.5,2262.0,15.17684608]
[1770006420436,0.1024,2264.2,2262.1,14.23823644]
[1770006420640,13.60046061,2263.8,2262.0,0.001]
[1770006420839,13.60046061,2264.4,2262.0,13.79704189]
[1770006421064,0.0011,2264.5,2262.0,13.79704189]
[1770006421065,0.0011,2264.5,2262.2,13.79604189]
[1770006421339,0.927,2264.3,2262.3,15.22427387]
[1770006421567,0.927,2264.2,2262.3,15.22427387]
[1770006422350,0.1024,2264.1,2262.0,0.001]
[1770006422550,13.70286061,2264.1,2262.0,0.001]
[1770006422754,13.70286061,2263.9,2262.0,0.001]
[1770006422978,0.927,2263.8,2262.0,0.001]
[1770006423442,19.949,2263.7,2262.0,0.001]
[1770006423640,3.0146,2263.6,2262.0,0.001]
[1770006423838,0.927,2263.6,2262.0,0.001]
[1770006424044,1.1044842,2263.5,2262.0,0.001]
[1770006424341,20.879,2263.4,2262.0,0.001]
[1770006424540,0.1024,2263.3,2262.0,0.001]
[1770006424770,13.70286061,2263.3,2262.0,0.001]
[1770006424935,3.45818606,2263.2,2262.0,0.001]
[1770006425373,19.951,2263.7,2262.0,0.001]
[1770006425558,0.927,2263.2,2262.0,0.001]
[1770006426653,19.955,2263.1,2262.0,0.001]
[1770006426860,13.70286061,2263.0,2260.6,13.79704189]
[1770006427177,13.70286061,2262.8,2260.6,13.79704189]
[1770006427351,13.60046061,2262.6,2260.6,0.001]
[1770006427680,1.37028606,2262.7,2260.6,0.001]
[1770006427681,0.927,2262.5,2260.6,13.00786203]
[1770006427869,0.927,2262.5,2260.6,12.50786203]
[1770006428447,0.1024,2263.1,2260.6,12.50786203]
[1770006428650,13.64510475,2263.2,2260.6,12.50786203]
[1770006428651,0.927,2263.0,2260.6,12.50786203]
[1770006428968,0.927,2263.0,2260.8,13.00686203]
[1770006429171,0.57816322,2263.6,2260.8,13.00686203]
[1770006429485,1.0294,2263.5,2260.8,13.00686203]
[1770006429684,13.64510475,2264.2,2261.0,13.00686203]
[1770006429870,13.74750475,2263.9,2261.0,13.00686203]
[1770006430178,2.35830403,2263.8,2261.4,13.00686203]
[1770006430391,0.928,2263.8,2261.4,13.00686203]
[1770006430548,0.1024,2264.3,2261.4,13.00686203]
[1770006430549,0.928,2263.7,2261.4,13.00686203]
[1770006431967,13.64510475,2263.3,2261.1,1.3933862]
[1770006432290,0.1024,2262.8,2260.2,13.00686203]
[1770006432475,0.55553558,2263.3,2260.8,13.00786203]
[1770006432778,1.0304,2263.2,2260.8,13.00786203]
[1770006432989,14.67550475,2263.2,2260.9,1.3007862]
[1770006433159,0.1024,2263.0,2260.8,13.00786203]
[1770006433484,0.1024,2262.8,2260.8,0.001]
[1770006433693,0.1024,2262.6,2260.8,0.001]
[1770006433863,0.928,2262.5,2260.8,0.001]
[1770006434375,0.928,2262.4,2260.8,0.001]
[1770006435385,21.16533153,2262.6,2259.1,13.00686203]
[1770006435386,13.74750475,2262.3,2259.1,13.00686203]
[1770006435585,1.90195272,2262.2,2259.6,13.00786203]
[1770006435770,0.70889656,2262.1,2259.6,13.00786203]
[1770006435967,0.3359703,2261.8,2259.6,13.00786203]
[1770006436164,13.74750475,2261.4,2259.6,0.001]
[1770006436395,0.3359703,2261.1,2259.0,0.1225112]
[1770006436595,0.52720224,2261.3,2259.0,0.1225112]
[1770006436792,0.928,2261.2,2259.0,13.12937323]
[1770006436995,0.60649656,2261.5,2259.1,14.31979935]
[1770006437194,0.928,2261.5,2259.1,14.31979935]
[1770006437900,0.928,2261.6,2259.1,14.31979935]
[1770006438198,0.928,2261.9,2259.3,13.00686203]
[1770006438374,15.01985523,2262.2,2259.5,13.00686203]
[1770006438375,16.12498089,2262.2,2259.5,13.00686203]
[1770006438569,16.12498089,2262.2,2259.7,13.00686203]
[1770006438570,2.54049809,2262.1,2259.7,13.00686203]
[1770006439390,0.928,2262.0,2259.7,13.00686203]
[1770006439973,0.928,2262.0,2259.8,13.48545286]
[1770006440175,0.1024,2262.8,2259.8,13.48545286]
[1770006440383,1.45520224,2262.5,2260.0,13.00686203]
[1770006440579,1.5100307,2262.4,2260.2,13.00686203]
[1770006440780,1.5100307,2262.4,2260.3,0.47859083]
[1770006441102,0.928,2262.3,2260.4,13.00686203]
[1770006441306,0.52720224,2262.9,2260.4,13.00686203]
[1770006441503,0.928,2262.9,2260.4,13.00686203]
[1770006441994,0.928,2263.1,2260.4,13.00686203]
[1770006442195,0.928,2263.0,2260.4,13.00686203]
[1770006442499,0.1024,2263.3,2260.6,13.00686203]
[1770006442700,13.64510475,2263.4,2260.6,13.00686203]
[1770006442998,0.928,2263.3,2260.6,13.00686203]
[1770006443201,0.60649656,2263.7,2260.8,13.00686203]
[1770006443390,0.928,2263.6,2261.0,13.00686203]
[1770006443590,0.60649656,2263.6,2261.2,13.00686203]
[1770006443790,0.9291,2263.8,2261.2,13.00686203]
[1770006444182,0.9291,2263.8,2261.4,13.00686203]
[1770006445004,0.0011,2263.8,2261.4,13.00686203]
[1770006445208,0.0011,2263.8,2261.6,13.00686203]
[1770006446787,13.76683433,2263.8,2261.6,13.00686203]
[1770006446987,13.76683433,2263.8,2261.5,1.39549732]
[1770006447181,13.76683433,2263.8,2261.2,13.00686203]
[1770006447407,13.64620475,2263.8,2261.2,13.00686203]
[1770006447608,13.74750475,2263.6,2261.2,13.00686203]
[1770006447908,13.74750475,2263.4,2261.1,0.928]
[1770006448075,13.64510475,2263.3,2261.1,0.928]
[1770006448281,0.58513798,2263.6,2261.1,13.93486203]
[1770006448282,2.30275048,2263.2,2261.1,13.93486203]
[1770006448509,0.0011,2263.6,2261.1,13.93486203]
[1770006448709,0.928,2263.5,2261.3,13.00686203]
[1770006448907,1.45520224,2263.5,2261.3,13.00686203]
[1770006449107,0.928,2263.5,2261.3,13.00686203]
[1770006449781,0.0011,2263.6,2261.3,13.00686203]
[1770006450116,0.928,2263.5,2261.5,13.00686203]
[1770006450315,0.0011,2263.6,2261.5,13.00686203]
[1770006451814,0.0011,2263.6,2261.6,0.1024]
[1770006451986,0.0011,2263.6,2261.7,13.00686203]
[1770006452183,0.0011,2263.8,2261.7,13.00686203]
[1770006452184,0.0011,2263.8,2261.9,13.24043233]
[1770006452404,0.0011,2263.8,2262.1,13.00686203]
[1770006454305,0.0011,2263.8,2262.0,0.928]
[1770006455115,0.60649656,2263.7,2262.0,0.928]
[1770006455613,14.25160131,2263.7,2262.0,0.928]
[1770006455814,0.60649656,2263.7,2261.6,13.00686203]
[1770006455976,0.0011,2263.8,2261.8,13.00686203]
[1770006458315,0.0011,2263.8,2262.0,13.38336378]
[1770006458524,0.0011,2264.0,2262.2,13.38336378]
[1770006458718,0.0011,2264.0,2262.4,13.38336378]
[1770006458933,0.0011,2264.5,2262.7,13.71933408]
[1770006459137,13.98814493,2265.7,2262.8,14.01999829]
[1770006459420,14.51524135,2265.7,2262.8,14.01999829]
[1770006459718,1.45509642,2265.9,2263.0,13.38336378]
[1770006459917,0.928,2266.0,2263.0,13.38336378]
[1770006460094,0.1024,2266.1,2263.0,13.38336378]
[1770006460300,1.47200414,2266.1,2263.2,13.38336378]
[1770006460496,1.47200414,2266.1,2263.1,16.82576797]
[1770006460497,1.47200414,2266.1,2263.4,13.38336378]
[1770006460699,1.47200414,2266.1,2263.6,13.38336378]
[1770006460899,14.87265719,2266.5,2263.8,13.38336378]
[1770006461233,0.0011,2265.7,2263.8,13.38336378]
[1770006462221,0.0011,2265.7,2264.0,13.38336378]
[1770006462807,0.0011,2265.7,2264.1,0.927]
[1770006463014,0.0011,2265.7,2264.1,14.31036378]
[1770006463221,0.0011,2265.7,2264.2,14.68404998]
[1770006465322,0.0011,2265.7,2264.1,0.927]
[1770006466015,0.0011,2265.7,2264.1,14.31036378]
[1770006467025,0.1024,2267.3,2264.8,13.07071875]
[1770006467353,13.28029487,2268.0,2265.2,13.07071875]
[1770006467354,1.1023735,2267.9,2265.2,13.07071875]
[1770006467491,0.927,2268.5,2264.9,1.64764766]
[1770006467492,4.41034592,2267.4,2264.9,0.927]
[1770006467692,14.38424667,2266.9,2264.1,13.07071875]
[1770006467918,13.28029487,2266.7,2264.2,2.23407187]
[1770006468088,1.87955038,2266.8,2264.4,13.07071875]
[1770006468292,0.0011,2266.9,2264.2,2.33647187]
[1770006468293,0.0011,2266.9,2265.2,13.07071875]
[1770006468519,0.0011,2266.9,2265.4,13.07071875]
[1770006470800,0.0011,2266.9,2265.3,0.927]
[1770006471023,0.0011,2266.9,2265.3,13.99771875]
[1770006472324,0.0011,2266.9,2265.3,0.927]
[1770006473000,0.0011,2266.9,2264.8,13.07071875]
[1770006473201,0.0011,2266.9,2264.9,1.29430053]
[1770006473503,0.0011,2266.7,2264.9,1.29430053]
[1770006474037,0.0011,2266.7,2264.9,14.36501928]
[1770006475321,13.28139487,2266.7,2264.7,0.927]
[1770006475726,13.28139487,2266.7,2264.4,13.07071875]
[1770006475928,13.28139487,2266.7,2264.0,0.927]
[1770006476333,13.28029487,2266.5,2264.0,0.927]
[1770006476713,13.28029487,2266.5,2264.0,13.99771875]
[1770006477213,14.20729487,2266.4,2264.1,13.07071875]
[1770006477614,13.28029487,2266.4,2264.1,13.07071875]
[1770006477820,1.32802949,2266.3,2264.3,13.07071875]
[1770006478022,14.20729487,2266.6,2264.3,13.07071875]
[1770006478819,13.28029487,2266.6,2264.3,13.07071875]
[1770006479039,0.927,2266.5,2264.3,13.07071875]
[1770006479425,14.20729487,2266.5,2264.3,13.07071875]
[1770006479744,13.28029487,2266.5,2264.3,13.07071875]
[1770006479925,1.32802949,2266.4,2264.5,13.07071875]
[1770006480120,0.927,2266.5,2264.5,13.07071875]
[1770006480545,13.28139487,2266.7,2264.5,13.07071875]
[1770006480725,13.28029487,2266.4,2264.4,1.44704906]
[1770006480921,14.20729487,2266.3,2264.0,13.99771875]
[1770006481146,14.20729487,2266.3,2264.0,0.927]
[1770006481521,13.28029487,2266.0,2263.5,13.07071875]
[1770006481844,13.28029487,2265.4,2262.7,13.07071875]
[1770006482045,13.28029487,2265.2,2262.8,1.30707187]
[1770006482418,0.927,2265.1,2262.8,14.37779062]
[1770006482825,13.28029487,2265.1,2262.8,1.30707187]
[1770006483152,13.28029487,2264.3,2262.0,0.001]
[1770006483473,17.95429487,2264.1,2262.0,0.001]
[1770006483615,13.28029487,2263.7,2262.0,0.001]
[1770006484023,14.20729487,2263.6,2262.0,0.001]
[1770006484429,13.28029487,2264.1,2262.0,0.001]
[1770006484743,15.53532436,2264.0,2262.0,0.001]
[1770006484949,0.927,2263.9,2262.0,0.001]
[1770006485131,14.60832436,2264.0,2262.0,0.001]
[1770006485333,0.927,2263.9,2262.0,0.001]
[1770006485523,14.60832436,2264.0,2262.0,0.001]
[1770006485725,0.1024,2264.5,2262.0,13.07171875]
[1770006485726,2.38783244,2263.9,2262.0,13.07171875]
[1770006485915,13.28029487,2264.5,2262.2,13.07071875]
[1770006486318,0.927,2264.4,2262.2,13.07071875]
[1770006487062,13.28029487,2264.5,2262.2,13.07071875]
[1770006487242,13.38269487,2265.2,2262.2,13.07071875]
[1770006487425,13.38269487,2265.2,2262.1,14.70028064]
[1770006487426,14.83471817,2265.1,2262.4,13.07071875]
[1770006487627,14.83471817,2265.1,2262.6,12.93335269]
[1770006487944,0.927,2265.0,2262.6,12.93335269]
[1770006488248,0.927,2264.9,2262.8,12.93335269]
[1770006488436,0.927,2264.9,2263.0,12.93335269]
[1770006488645,0.927,2264.9,2263.1,1.38603527]
[1770006489043,14.69742306,2264.9,2263.1,1.38603527]
[1770006489230,14.69742306,2264.9,2262.5,12.93335269]
[1770006489432,14.69742306,2264.8,2262.5,12.93335269]
[1770006490054,1.5544233,2265.1,2262.5,13.44008166]
[1770006490222,0.927,2264.7,2262.5,12.93335269]
[1770006490423,14.23893175,2265.3,2262.5,12.93335269]
[1770006490653,14.13653175,2265.3,2262.5,13.44008166]
[1770006490864,0.927,2265.2,2262.7,12.93335269]
[1770006491026,14.69742306,2265.2,2262.7,12.93335269]
[1770006491226,14.69742306,2265.2,2262.9,12.93335269]
[1770006491460,1.50635318,2265.1,2263.0,1.29333527]
[1770006491766,0.927,2265.0,2263.0,1.29333527]
[1770006491972,14.69742306,2265.0,2263.0,1.29333527]
[1770006492121,14.69742306,2265.0,2262.4,0.001]
[1770006492122,13.77042306,2264.6,2262.4,0.001]
[1770006492522,13.77042306,2264.4,2262.4,0.001]
[1770006492722,0.927,2264.3,2262.4,0.001]
[1770006492943,13.77042306,2264.4,2262.4,12.93435269]
[1770006493143,0.927,2264.3,2262.4,12.93435269]
[1770006493359,1.46974231,2264.2,2262.5,1.29343527]
[1770006493556,1.46974231,2264.2,2262.5,14.22678796]
[1770006493851,0.927,2264.3,2262.5,14.22678796]
[1770006494758,0.927,2264.2,2262.5,14.22678796]
[1770006495454,14.87423297,2264.9,2262.5,14.22678796]
[1770006495655,13.77042306,2264.9,2262.5,14.22678796]
[1770006495851,0.927,2264.8,2262.5,14.22678796]
[1770006496150,1.46974231,2264.7,2262.6,14.35613149]
[1770006497023,15.24016537,2264.7,2262.6,14.35613149]
[1770006497326,0.927,2264.6,2262.6,14.35613149]
[1770006497531,14.69742306,2264.6,2262.6,14.35613149]
[1770006497725,0.927,2264.5,2262.6,14.35613149]
[1770006497924,1.46974231,2264.4,2262.7,1.43561315]
[1770006498263,15.24016537,2264.4,2262.4,0.001]
[1770006498768,0.927,2264.3,2262.5,12.93335269]
[1770006498964,1.46974231,2264.4,2262.5,12.93335269]
[1770006499168,0.927,2264.4,2262.5,12.93335269]
[1770006500226,0.927,2264.4,2262.7,12.93335269]
[1770006500962,0.927,2264.5,2262.8,0.4787026]
[1770006501145,0.927,2264.4,2262.7,12.93335269]
[1770006501349,13.77042306,2265.0,2262.7,12.93335269]
[1770006501551,2.30404231,2264.9,2262.9,12.93335269]
[1770006501769,0.927,2264.8,2262.9,12.93335269]
[1770006502328,0.927,2264.7,2262.9,12.93335269]
[1770006503068,2.30404231,2264.9,2262.9,13.41205529]
[1770006503266,2.30404231,2264.9,2262.9,12.93335269]
[1770006503458,1.60744654,2264.8,2263.0,1.4226688]
[1770006504276,1.60744654,2264.8,2263.0,14.35602149]
[1770006504482,2.53444654,2264.8,2263.0,14.35602149]
[1770006505145,16.3048696,2264.8,2263.0,1.4226688]
[1770006505341,16.3048696,2264.8,2262.5,12.93335269]
[1770006505549,16.3048696,2264.8,2262.0,0.001]
[1770006505550,13.77042306,2264.6,2262.0,0.001]
[1770006505844,0.003,2261.3,2260.8,0.001]
[1770006506042,13.77042306,2261.8,2260.8,0.001]
[1770006506252,13.77042306,2261.6,2259.5,12.93435269]
[1770006506569,3.37808093,2261.7,2259.5,12.93435269]
[1770006506570,1.10550986,2261.4,2259.5,0.001]
[1770006506865,1.10550986,2261.4,2259.0,13.05586389]
[1770006506866,13.77042306,2260.8,2259.4,0.927]
[1770006507075,1.55908188,2261.7,2259.4,0.927]
[1770006507076,13.77042306,2261.4,2259.6,0.43484713]
[1770006507379,13.77042306,2261.4,2259.4,0.927]
[1770006507538,0.04351529,2261.3,2259.4,12.93335269]
[1770006507733,13.77042306,2261.9,2259.5,1.89496714]
[1770006508074,1.47269324,2261.8,2259.6,28.91618467]
[1770006508785,15.2431163,2261.8,2259.7,0.927]
[1770006509190,15.2431163,2261.8,2259.8,0.927]
[1770006509494,15.2431163,2261.8,2259.9,0.927]
[1770006509649,16.34843806,2261.8,2259.6,15.98283198]
[1770006509853,13.77042306,2261.6,2259.7,2.5252832]
[1770006510045,13.77042306,2261.6,2259.7,1.5982832]
[1770006510251,13.77042306,2261.6,2259.8,0.927]
[1770006510664,13.77042306,2261.4,2259.9,0.928]
[1770006510880,15.25801146,2261.3,2260.0,0.928]
[1770006511065,15.25801146,2261.3,2259.2,14.5]
[1770006511268,15.25801146,2261.3,2259.3,0.928]
[1770006511476,15.25801146,2261.3,2259.3,1.50412174]
[1770006511665,15.25801146,2261.3,2259.3,0.928]
[1770006511863,1.52580115,2261.2,2259.4,14.5]
[1770006512270,15.29622421,2261.2,2259.5,0.928]
[1770006512664,16.40183951,2261.2,2259.5,0.928]
[1770006512866,16.40183951,2261.2,2259.1,14.5]
[1770006513086,16.40183951,2261.2,2259.2,0.928]
[1770006513267,15.85283435,2261.1,2259.3,2.4708]
[1770006513462,15.85283435,2261.1,2259.3,0.928]
[1770006513665,15.85283435,2261.1,2259.3,15.428]
[1770006513987,15.85283435,2261.1,2259.3,0.928]
[1770006514383,15.85283435,2261.1,2259.4,14.5]
[1770006514960,15.85283435,2261.1,2259.5,0.928]
[1770006515298,15.3557065,2261.0,2259.6,2.4708]
[1770006515670,15.3557065,2261.0,2259.6,1.5428]
[1770006515887,15.3557065,2261.0,2259.7,0.929]
[1770006516822,1.58528344,2261.0,2259.7,0.929]
[1770006516993,13.77042306,2261.5,2259.7,0.929]
[1770006517418,13.77042306,2261.5,2259.8,14.5]
[1770006517705,13.77042306,2261.5,2259.9,0.928]
[1770006519989,13.77042306,2261.5,2260.0,0.928]
[1770006520218,12.78446249,2261.3,2260.1,0.928]
[1770006522044,12.78446249,2261.3,2260.2,0.928]
[1770006522326,12.78446249,2261.3,2260.0,0.928]
[1770006523915,1.37704231,2261.4,2260.0,0.928]
[1770006524119,12.78446249,2261.8,2260.0,0.928]
[1770006525803,12.78446249,2261.8,2260.0,14.68504479]
[1770006526211,12.78446249,2261.8,2260.1,14.5]
[1770006527430,14.18590363,2262.3,2260.2,13.78617196]
[1770006527817,14.18590363,2262.3,2260.3,0.928]
[1770006528038,13.45499373,2262.1,2260.4,1.4714172]
[1770006528217,13.45499373,2262.1,2260.5,0.928]
[1770006528421,13.45499373,2262.1,2260.6,0.928]
[1770006528747,13.45609373,2262.1,2260.6,0.928]
[1770006529862,13.45499373,2261.7,2259.7,0.001]
[1770006530065,14.8004931,2261.6,2259.7,0.001]
[1770006530265,13.45499373,2261.1,2259.8,0.928]
[1770006530553,13.45499373,2260.9,2259.7,0.001]
[1770006530718,13.45499373,2260.9,2259.7,0.929]
[1770006530922,15.2678931,2260.8,2259.7,0.929]
[1770006533042,4.674,2260.7,2259.5,0.001]
[1770006533240,13.45499373,2260.3,2258.6,0.001]
[1770006533443,13.45499373,2260.3,2259.1,0.928]